[Event "14e Open International de Quenza"]
[Site "Quenza, France"]
[Date "????.??.??"]
[Round "6.7"]
[White "Utrera, Ludovic"]
[Black "Toktomushev, Teimur"]
[Result "0-1"]
[TimeControl "5min+3s"]
[WhiteElo "2118"]
[BlackElo "2401"]

1. e4 {[%clk 00:05:03]} c5 {[%clk 00:05:03]} {[%emt 00:00:01]} 2. Nc3 {[%clk
00:05:03]} {[%emt 00:00:01]} e6 {[%clk 00:05:03]} {[%emt 00:00:02]} 3. Nge2
{[%clk 00:05:03]} {[%emt 00:00:02]} a6 {[%clk 00:04:58]} {[%emt 00:00:08]} 4.
g3 {[%clk 00:05:03]} {[%emt 00:00:02]} b5 {[%clk 00:04:58]} {[%emt 00:00:01]} 5.
Bg2 {[%clk 00:05:03]} {[%emt 00:00:01]} Bb7 {[%clk 00:04:58]} {[%emt 00:00:01]}
6. d4 {[%clk 00:05:03]} cxd4 {[%clk 00:04:58]} {[%emt 00:00:02]} 7. Nxd4 {[%clk
00:05:03]} Nf6 {[%clk 00:04:58]} {[%emt 00:00:02]} 8. O-O {[%clk 00:05:03]}
{[%emt 00:00:01]} b4 {[%clk 00:04:58]} {[%emt 00:00:02]} 9. Na4 {[%clk
00:05:03]} Bxe4 {[%clk 00:04:58]} {[%emt 00:00:01]} 10. Bxe4 {[%clk 00:05:03]}
Nxe4 {[%clk 00:04:58]} {[%emt 00:00:03]} 11. Re1 {[%clk 00:05:03]} {[%emt
00:00:02]} d5 {[%clk 00:04:30]} {[%emt 00:00:31]} 12. c4 {[%clk 00:05:03]}
{[%emt 00:00:01]} bxc3 {[%clk 00:04:30]} {[%emt 00:00:01]} 13. Nxc3 {[%clk
00:04:48]} {[%emt 00:00:19]} Be7 {[%clk 00:04:30]} {[%emt 00:00:02]} 14. Nxe4
{[%clk 00:04:45]} {[%emt 00:00:06]} dxe4 {[%clk 00:04:30]} {[%emt 00:00:01]} 15.
Rxe4 {[%clk 00:04:45]} {[%emt 00:00:02]} O-O {[%clk 00:04:30]} {[%emt
00:00:01]} 16. Qb3 {[%clk 00:04:45]} {[%emt 00:00:04]} a5 {[%clk 00:04:02]}
{[%emt 00:00:32]} 17. a4 {[%clk 00:04:09]} {[%emt 00:00:39]} Ra6 {[%clk
00:03:20]} {[%emt 00:00:45]} 18. Nb5 {[%clk 00:03:57]} {[%emt 00:00:14]} Nd7
{[%clk 00:02:53]} {[%emt 00:00:31]} 19. Be3 {[%clk 00:03:46]} {[%emt 00:00:14]}
Nc5 {[%clk 00:01:53]} {[%emt 00:01:03]} 20. Bxc5 {[%clk 00:03:46]} {[%emt
00:00:01]} Bxc5 {[%clk 00:01:53]} 21. Rd1 {[%clk 00:03:43]} {[%emt 00:00:06]}
Qe7 {[%clk 00:01:47]} {[%emt 00:00:09]} 22. Rc4 {[%clk 00:03:22]} {[%emt
00:00:24]} Raa8 {[%clk 00:01:40]} {[%emt 00:00:10]} 23. Rdc1 {[%clk 00:03:19]}
{[%emt 00:00:06]} Bb4 {[%clk 00:01:36]} {[%emt 00:00:07]} 24. Qf3 {[%clk
00:03:11]} {[%emt 00:00:12]} Rad8 {[%clk 00:01:34]} {[%emt 00:00:05]} 25. Nd4
{[%clk 00:03:00]} {[%emt 00:00:14]} Qd7 {[%clk 00:00:36]} {[%emt 00:01:01]} 26.
Nc6 {[%clk 00:02:57]} {[%emt 00:00:06]} Rc8 {[%clk 00:00:36]} {[%emt 00:00:01]}
27. Kg2 {[%clk 00:01:56]} {[%emt 00:01:03]} Bd6 {[%clk 00:00:11]} {[%emt
00:00:28]} 28. Rd1 {[%clk 00:01:37]} {[%emt 00:00:22]} Qc7 {[%clk 00:00:08]}
{[%emt 00:00:06]} 29. Qd3 {[%clk 00:01:22]} {[%emt 00:00:18]} Bb4 {[%clk
00:00:07]} {[%emt 00:00:03]} 30. Rdc1 {[%clk 00:01:06]} {[%emt 00:00:19]} Qb7
{[%clk 00:00:07]} 31. Qf3 {[%clk 00:01:02]} {[%emt 00:00:07]} Qa6 {[%clk
00:00:07]} 32. Rxb4 {[%clk 00:00:47]} {[%emt 00:00:18]} axb4 {[%clk 00:00:07]}
{[%emt 00:00:02]} 33. Ne7+ {[%clk 00:00:47]} Kh8 {[%clk 00:00:07]} {[%emt
00:00:01]} 34. Nxc8 {[%clk 00:00:47]} {[%emt 00:00:02]} Rxc8 {[%clk 00:00:07]}
{[%emt 00:00:01]} 35. Rxc8+ {[%clk 00:00:46]} {[%emt 00:00:05]} Qxc8 {[%clk
00:00:07]} 36. Qxf7 {[%clk 00:00:46]} {[%emt 00:00:01]} h6 {[%clk 00:00:07]}
{[%emt 00:00:03]} 37. Qe7 {[%clk 00:00:19]} {[%emt 00:00:30]} Qc6+ {[%clk
00:00:07]} {[%emt 00:00:02]} 38. Kh3 {[%clk 00:00:15]} {[%emt 00:00:07]} Qxa4
{[%clk 00:00:07]} {[%emt 00:00:02]} 39. Qxe6 {[%clk 00:00:14]} {[%emt
00:00:03]} Qc2 {[%clk 00:00:07]} {[%emt 00:00:01]} 40. Qe8+ {[%clk 00:00:14]}
{[%emt 00:00:02]} Kh7 {[%clk 00:00:07]} 41. Qe5 {[%clk 00:00:08]} {[%emt
00:00:09]} b3 {[%clk 00:00:07]} {[%emt 00:00:02]} 42. g4 {[%clk 00:00:04]}
{[%emt 00:00:06]} Qxf2 {[%clk 00:00:07]} {[%emt 00:00:02]} 43. Qe4+ {[%clk
00:00:04]} Kh8 {[%clk 00:00:07]} 44. Qe8+ {[%clk 00:00:04]} Kh7 {[%clk
00:00:07]} 45. Qe4+ {[%clk 00:00:04]} {[%emt 00:00:02]} Kg8 {[%clk 00:00:07]}
{[%emt 00:00:02]} 46. Qe8+ {[%clk 00:00:04]} Qf8 {[%clk 00:00:07]} {[%emt
00:00:01]} 47. Qxf8+ {[%emt 00:00:19]} 0-1

[Event "14e Open International de Quenza"]
[Site "Quenza, France"]
[Date "????.??.??"]
[Round "6.8"]
[White "Skripchenko, Almira"]
[Black "Have, Didier"]
[Result "1-0"]
[TimeControl "5min+3s"]
[WhiteElo "2359"]
[BlackElo "1903"]

1. e4 {[%clk 00:05:03]} {[%emt 00:01:13]} c5 {[%clk 00:05:03]} {[%emt
00:00:02]} 2. Nf3 {[%emt 00:00:02]} d6 3. Bb5+ {[%clk 00:05:03]} {[%emt
00:00:01]} Nc6 {[%clk 00:05:03]} {[%emt 00:00:02]} 4. O-O {[%clk 00:05:03]}
{[%emt 00:00:02]} Bd7 {[%clk 00:04:45]} {[%emt 00:00:22]} 5. Re1 {[%clk
00:05:01]} {[%emt 00:00:05]} a6 {[%clk 00:04:42]} {[%emt 00:00:06]} 6. Bf1
{[%clk 00:05:01]} {[%emt 00:00:02]} Bg4 {[%clk 00:04:38]} {[%emt 00:00:09]} 7.
c3 {[%clk 00:04:58]} {[%emt 00:00:06]} e6 {[%clk 00:04:31]} {[%emt 00:00:10]} 8.
d4 {[%clk 00:04:55]} {[%emt 00:00:06]} cxd4 {[%clk 00:04:18]} {[%emt 00:00:16]}
9. cxd4 {[%clk 00:04:55]} Bxf3 {[%clk 00:04:10]} {[%emt 00:00:11]} 10. gxf3
{[%clk 00:04:55]} {[%emt 00:00:01]} Qh4 {[%clk 00:03:57]} {[%emt 00:00:15]} 11.
Nc3 {[%clk 00:04:44]} {[%emt 00:00:15]} Be7 {[%clk 00:03:39]} {[%emt 00:00:21]}
12. f4 {[%clk 00:03:30]} {[%emt 00:01:17]} Nf6 {[%clk 00:03:28]} {[%emt
00:00:14]} 13. Be3 {[%clk 00:03:09]} {[%emt 00:00:24]} Ng4 {[%clk 00:03:18]}
{[%emt 00:00:13]} 14. h3 {[%clk 00:03:09]} {[%emt 00:00:01]} Nf6 {[%clk
00:02:13]} {[%emt 00:01:08]} 15. Bg2 {[%clk 00:03:06]} {[%emt 00:00:06]} Nh5
{[%clk 00:02:00]} {[%emt 00:00:16]} 16. Qf3 {[%clk 00:03:06]} {[%emt 00:00:02]}
g5 {[%clk 00:01:48]} {[%emt 00:00:15]} 17. f5 {[%clk 00:03:05]} {[%emt
00:00:04]} Rg8 {[%clk 00:01:26]} {[%emt 00:00:25]} 18. Qg4 {[%clk 00:02:59]}
{[%emt 00:00:09]} Nf6 {[%clk 00:01:05]} {[%emt 00:00:25]} 19. Qxh4 {[%clk
00:02:56]} {[%emt 00:00:06]} gxh4 {[%clk 00:01:05]} {[%emt 00:00:01]} 20. fxe6
{[%clk 00:02:40]} {[%emt 00:00:19]} fxe6 {[%clk 00:01:05]} {[%emt 00:00:02]} 21.
Kh1 {[%clk 00:02:26]} {[%emt 00:00:17]} Kd7 {[%clk 00:01:00]} {[%emt 00:00:08]}
22. Rad1 {[%clk 00:02:20]} {[%emt 00:00:09]} Rg6 {[%clk 00:00:49]} {[%emt
00:00:13]} 23. e5 {[%clk 00:02:12]} {[%emt 00:00:12]} Nh5 {[%clk 00:00:39]}
{[%emt 00:00:13]} 24. Be4 {[%clk 00:01:47]} {[%emt 00:00:28]} Rgg8 {[%clk
00:00:26]} {[%emt 00:00:16]} 25. Bxh7 {[%clk 00:01:35]} {[%emt 00:00:15]} Rh8
{[%clk 00:00:25]} {[%emt 00:00:04]} 26. Be4 {[%clk 00:01:35]} {[%emt 00:00:02]}
dxe5 {[%clk 00:00:25]} {[%emt 00:00:03]} 27. dxe5+ {[%clk 00:01:35]} {[%emt
00:00:02]} Kc7 {[%clk 00:00:25]} {[%emt 00:00:02]} 28. Bxc6 {[%clk 00:01:21]}
{[%emt 00:00:17]} bxc6 {[%clk 00:00:25]} {[%emt 00:00:01]} 29. Ne4 {[%clk
00:01:18]} {[%emt 00:00:06]} Raf8 {[%clk 00:00:22]} {[%emt 00:00:07]} 30. Rd3
{[%clk 00:00:54]} {[%emt 00:00:27]} Nf4 {[%clk 00:00:16]} {[%emt 00:00:09]} 31.
Bxf4 {[%clk 00:00:25]} {[%emt 00:00:31]} Rxf4 {[%clk 00:00:16]} {[%emt
00:00:01]} 32. f3 {[%clk 00:00:25]} Rhf8 {[%clk 00:00:16]} {[%emt 00:00:02]} 33.
Kg2 {[%clk 00:00:25]} {[%emt 00:00:01]} Rg8+ {[%clk 00:00:16]} {[%emt
00:00:03]} 34. Kf1 {[%clk 00:00:20]} {[%emt 00:00:07]} Rgf8 {[%clk 00:00:16]}
{[%emt 00:00:04]} 35. Ke2 {[%clk 00:00:16]} {[%emt 00:00:07]} Rg8 {[%clk
00:00:13]} {[%emt 00:00:05]} 36. Red1 {[%clk 00:00:16]} {[%emt 00:00:02]} Bb4
{[%clk 00:00:09]} {[%emt 00:00:07]} 37. Ke3 {[%clk 00:00:16]} {[%emt 00:00:02]}
Rgf8 {[%clk 00:00:09]} {[%emt 00:00:03]} 38. Ke2 {[%clk 00:00:14]} {[%emt
00:00:06]} Rg8 {[%clk 00:00:09]} 39. Rd7+ {[%clk 00:00:13]} {[%emt 00:00:03]}
Kb6 {[%clk 00:00:09]} {[%emt 00:00:02]} 40. a3 {[%clk 00:00:13]} {[%emt
00:00:02]} Bf8 {[%clk 00:00:06]} {[%emt 00:00:06]} 41. b4 {[%clk 00:00:13]}
{[%emt 00:00:03]} Rg2+ {[%clk 00:00:06]} {[%emt 00:00:01]} 42. Ke3 {[%clk
00:00:13]} Rxe4+ {[%clk 00:00:05]} {[%emt 00:00:04]} 43. Kxe4 {[%clk 00:00:13]}
{[%emt 00:00:02]} Bh6 {[%clk 00:00:05]} {[%emt 00:00:02]} 44. Rh7 {[%clk
00:00:13]} {[%emt 00:00:03]} Re2+ {[%clk 00:00:05]} {[%emt 00:00:01]} 45. Kd4
{[%clk 00:00:12]} {[%emt 00:00:05]} Bf4 {[%clk 00:00:04]} {[%emt 00:00:05]} 46.
Kc4 {[%clk 00:00:10]} {[%emt 00:00:05]} Bxe5 {[%emt 00:00:04]} 1-0

[Event "14e Open International de Quenza"]
[Site "Quenza, France"]
[Date "????.??.??"]
[Round "6.9"]
[White "Paoli, Guillaume"]
[Black "Tomasi, Albert"]
[Result "0-1"]
[TimeControl "5min+3s"]
[WhiteElo "1828"]
[BlackElo "2287"]

1. g3 {[%clk 00:05:03]} d5 {[%clk 00:05:03]} {[%emt 00:00:02]} 2. a3 {[%clk
00:05:03]} e5 {[%clk 00:05:00]} {[%emt 00:00:06]} 3. Bg2 {[%clk 00:05:03]} Nf6
{[%clk 00:05:00]} {[%emt 00:00:02]} 4. c3 {[%clk 00:05:03]} {[%emt 00:00:01]}
Be7 {[%clk 00:04:57]} {[%emt 00:00:05]} 5. d4 {[%clk 00:05:03]} {[%emt
00:00:01]} Nbd7 {[%clk 00:04:48]} {[%emt 00:00:12]} 6. dxe5 {[%clk 00:05:03]}
{[%emt 00:00:02]} Nxe5 {[%clk 00:04:48]} {[%emt 00:00:01]} 7. Nf3 {[%clk
00:05:03]} Ng6 {[%clk 00:04:48]} {[%emt 00:00:02]} 8. O-O {[%clk 00:05:03]}
{[%emt 00:00:02]} O-O {[%clk 00:04:48]} {[%emt 00:00:03]} 9. b4 {[%clk
00:05:03]} c6 {[%clk 00:04:40]} {[%emt 00:00:13]} 10. Bb2 {[%clk 00:05:03]}
{[%emt 00:00:01]} a5 {[%clk 00:04:37]} {[%emt 00:00:06]} 11. Nbd2 {[%clk
00:05:03]} {[%emt 00:00:02]} Re8 {[%clk 00:04:33]} {[%emt 00:00:07]} 12. c4
{[%clk 00:05:03]} {[%emt 00:00:01]} axb4 {[%clk 00:03:57]} {[%emt 00:00:38]} 13.
axb4 {[%clk 00:05:03]} {[%emt 00:00:01]} Rxa1 {[%clk 00:03:57]} {[%emt
00:00:03]} 14. Qxa1 {[%clk 00:05:03]} {[%emt 00:00:01]} Bxb4 {[%clk 00:03:57]}
{[%emt 00:00:02]} 15. cxd5 {[%clk 00:04:57]} {[%emt 00:00:10]} cxd5 {[%clk
00:02:55]} {[%emt 00:01:05]} 16. e3 {[%clk 00:04:51]} {[%emt 00:00:08]} Be6
{[%clk 00:02:35]} {[%emt 00:00:23]} 17. Nb3 {[%clk 00:04:47]} {[%emt 00:00:07]}
Bf8 {[%clk 00:02:32]} {[%emt 00:00:06]} 18. Nbd4 {[%clk 00:04:47]} {[%emt
00:00:01]} Bd7 {[%clk 00:02:20]} {[%emt 00:00:15]} 19. Rc1 {[%clk 00:04:34]}
{[%emt 00:00:16]} Ne4 {[%clk 00:02:18]} {[%emt 00:00:05]} 20. Ne1 {[%clk
00:04:26]} {[%emt 00:00:11]} Ne5 {[%clk 00:02:06]} {[%emt 00:00:16]} 21. Ndf3
{[%clk 00:04:24]} {[%emt 00:00:05]} Ng4 {[%clk 00:01:55]} {[%emt 00:00:14]} 22.
Nd3 {[%clk 00:04:23]} {[%emt 00:00:04]} Bb5 {[%clk 00:01:55]} 23. Nfe1 {[%clk
00:04:23]} {[%emt 00:00:02]} Ngf6 {[%clk 00:01:24]} {[%emt 00:00:34]} 24. h3
{[%clk 00:04:16]} {[%emt 00:00:09]} Bc4 {[%clk 00:01:24]} {[%emt 00:00:04]} 25.
Ne5 {[%clk 00:04:11]} {[%emt 00:00:08]} b5 {[%clk 00:01:24]} {[%emt 00:00:03]}
26. Nxc4 {[%clk 00:04:10]} {[%emt 00:00:04]} dxc4 {[%clk 00:01:24]} {[%emt
00:00:03]} 27. Bd4 {[%clk 00:04:05]} {[%emt 00:00:08]} Nd2 {[%clk 00:01:22]}
{[%emt 00:00:05]} 28. Qb2 {[%clk 00:04:02]} {[%emt 00:00:06]} Nb3 {[%clk
00:01:22]} {[%emt 00:00:03]} 29. Rd1 {[%clk 00:04:02]} {[%emt 00:00:02]} Nxd4
{[%clk 00:01:22]} {[%emt 00:00:01]} 30. Rxd4 {[%clk 00:04:02]} {[%emt
00:00:02]} Qa5 {[%clk 00:01:22]} {[%emt 00:00:01]} 31. Nf3 {[%clk 00:03:50]}
{[%emt 00:00:14]} Rc8 {[%clk 00:01:10]} {[%emt 00:00:15]} 32. Qc2 {[%clk
00:03:48]} {[%emt 00:00:06]} g6 {[%clk 00:00:49]} {[%emt 00:00:24]} 33. e4
{[%clk 00:03:27]} {[%emt 00:00:24]} Bc5 {[%clk 00:00:49]} {[%emt 00:00:04]} 34.
Rd1 {[%clk 00:03:26]} {[%emt 00:00:04]} Qa4 {[%clk 00:00:42]} {[%emt 00:00:11]}
35. Qb1 {[%clk 00:03:20]} {[%emt 00:00:09]} Nxe4 {[%clk 00:00:42]} {[%emt
00:00:03]} 36. Rd7 {[%clk 00:03:04]} {[%emt 00:00:19]} Nxf2 {[%clk 00:00:30]}
{[%emt 00:00:14]} 37. Kh2 {[%clk 00:03:04]} {[%emt 00:00:02]} b4 {[%clk
00:00:30]} {[%emt 00:00:03]} 38. Ne5 {[%clk 00:03:01]} {[%emt 00:00:06]} Rf8
{[%clk 00:00:27]} {[%emt 00:00:07]} 39. Bd5 {[%clk 00:02:56]} {[%emt 00:00:08]}
Nd3 {[%clk 00:00:23]} {[%emt 00:00:07]} 40. Rxf7 {[%clk 00:02:50]} {[%emt
00:00:08]} Rxf7 {[%clk 00:00:21]} {[%emt 00:00:06]} 41. Bxf7+ {[%clk 00:02:43]}
{[%emt 00:00:09]} Kg7 {[%clk 00:00:21]} {[%emt 00:00:02]} 42. Nxd3 {[%clk
00:02:36]} {[%emt 00:00:10]} cxd3 {[%clk 00:00:21]} {[%emt 00:00:02]} 43. Bb3
{[%clk 00:02:33]} {[%emt 00:00:05]} Qd7 {[%clk 00:00:21]} {[%emt 00:00:03]} 44.
Qb2+ {[%clk 00:02:23]} {[%emt 00:00:13]} Bd4 {[%clk 00:00:21]} 45. Qd2 {[%clk
00:02:23]} Bc3 {[%clk 00:00:21]} {[%emt 00:00:02]} 46. Qd1 {[%clk 00:02:23]}
{[%emt 00:00:02]} d2 {[%clk 00:00:21]} {[%emt 00:00:02]} 47. h4 {[%clk
00:02:23]} {[%emt 00:00:03]} h5 {[%clk 00:00:21]} {[%emt 00:00:01]} 48. Qf3
{[%clk 00:02:16]} {[%emt 00:00:10]} Qe7 {[%clk 00:00:21]} {[%emt 00:00:02]} 49.
Kh3 {[%clk 00:02:06]} {[%emt 00:00:13]} Bf6 {[%clk 00:00:21]} {[%emt 00:00:02]}
50. Qg2 {[%clk 00:01:53]} {[%emt 00:00:16]} Qe1 {[%clk 00:00:21]} {[%emt
00:00:03]} 51. Qb7+ {[%clk 00:01:53]} {[%emt 00:00:02]} Kh6 {[%clk 00:00:21]}
{[%emt 00:00:01]} 52. Qd5 {[%clk 00:01:52]} {[%emt 00:00:04]} Be5 {[%clk
00:00:19]} {[%emt 00:00:05]} 53. Qd3 {[%clk 00:01:50]} {[%emt 00:00:05]} Qh1#
{[%emt 00:00:03]} 0-1

[Event "14e Open International de Quenza"]
[Site "Quenza, France"]
[Date "????.??.??"]
[Round "6.10"]
[White "Deladerriere, Calypso"]
[Black "Ternault, Mathieu"]
[Result "0-1"]
[TimeControl "5min+3s"]
[WhiteElo "2060"]
[BlackElo "2276"]

1. e4 {[%clk 00:05:03]} e6 {[%clk 00:05:03]} {[%emt 00:00:02]} 2. Nf3 {[%clk
00:05:03]} {[%emt 00:00:03]} a6 {[%clk 00:05:03]} {[%emt 00:00:04]} 3. d4
{[%clk 00:05:02]} {[%emt 00:00:04]} d5 {[%clk 00:05:03]} 4. Nc3 {[%clk
00:05:00]} {[%emt 00:00:05]} Nf6 {[%clk 00:04:42]} {[%emt 00:00:23]} 5. e5
{[%clk 00:05:00]} {[%emt 00:00:01]} Nfd7 {[%clk 00:04:42]} {[%emt 00:00:02]} 6.
a3 {[%clk 00:04:59]} c5 {[%clk 00:04:42]} {[%emt 00:00:06]} 7. dxc5 {[%clk
00:04:59]} {[%emt 00:00:03]} Nc6 {[%clk 00:04:40]} {[%emt 00:00:04]} 8. Bf4
{[%clk 00:04:59]} {[%emt 00:00:02]} Nxc5 {[%clk 00:04:40]} {[%emt 00:00:03]} 9.
Be2 {[%clk 00:04:55]} {[%emt 00:00:06]} Be7 {[%clk 00:04:24]} {[%emt 00:00:19]}
10. h3 {[%clk 00:04:51]} {[%emt 00:00:07]} d4 {[%clk 00:04:13]} {[%emt
00:00:15]} 11. Na2 {[%clk 00:03:59]} {[%emt 00:00:55]} Na4 {[%clk 00:03:07]}
{[%emt 00:01:09]} 12. Rb1 {[%clk 00:03:25]} {[%emt 00:00:37]} b5 {[%clk
00:03:02]} {[%emt 00:00:08]} 13. O-O {[%clk 00:03:15]} {[%emt 00:00:12]} Bb7
{[%clk 00:02:55]} {[%emt 00:00:11]} 14. Qd2 {[%clk 00:02:41]} {[%emt 00:00:38]}
Qd5 {[%clk 00:02:45]} {[%emt 00:00:12]} 15. b3 {[%clk 00:02:23]} {[%emt
00:00:20]} Nc5 {[%clk 00:02:44]} {[%emt 00:00:04]} 16. Nb4 {[%clk 00:02:06]}
{[%emt 00:00:20]} Nxb4 {[%clk 00:02:42]} {[%emt 00:00:05]} 17. axb4 {[%clk
00:02:06]} Ne4 {[%clk 00:02:37]} {[%emt 00:00:07]} 18. Qxd4 {[%clk 00:02:03]}
{[%emt 00:00:07]} Qxd4 {[%clk 00:02:35]} {[%emt 00:00:04]} 19. Nxd4 {[%clk
00:02:03]} {[%emt 00:00:01]} Nc3 {[%clk 00:01:35]} {[%emt 00:01:03]} 20. Rbe1
{[%clk 00:01:58]} {[%emt 00:00:08]} Nxe2+ {[%clk 00:01:25]} {[%emt 00:00:13]}
21. Nxe2 {[%clk 00:01:45]} {[%emt 00:00:17]} Bxb4 {[%clk 00:01:25]} {[%emt
00:00:02]} 22. c3 {[%clk 00:01:45]} Bc5 {[%clk 00:01:23]} {[%emt 00:00:05]} 23.
Rd1 {[%clk 00:01:39]} {[%emt 00:00:09]} h6 {[%clk 00:01:16]} {[%emt 00:00:10]}
24. Rd2 {[%clk 00:01:33]} {[%emt 00:00:09]} Rd8 {[%clk 00:01:15]} {[%emt
00:00:04]} 25. Rfd1 {[%clk 00:01:30]} {[%emt 00:00:06]} Rxd2 {[%clk 00:01:15]}
{[%emt 00:00:02]} 26. Rxd2 {[%clk 00:01:30]} Bd5 {[%clk 00:01:08]} {[%emt
00:00:10]} 27. b4 {[%clk 00:00:48]} {[%emt 00:00:45]} Bb6 {[%clk 00:01:01]}
{[%emt 00:00:09]} 28. Nd4 {[%clk 00:00:47]} {[%emt 00:00:05]} O-O {[%clk
00:00:47]} {[%emt 00:00:17]} 29. Rd1 {[%clk 00:00:37]} {[%emt 00:00:13]} Rc8
{[%clk 00:00:47]} {[%emt 00:00:02]} 30. Bd2 {[%clk 00:00:37]} {[%emt 00:00:03]}
Bxd4 {[%clk 00:00:30]} {[%emt 00:00:20]} 31. cxd4 {[%clk 00:00:37]} {[%emt
00:00:01]} Rc4 {[%clk 00:00:30]} 32. Ra1 {[%clk 00:00:28]} {[%emt 00:00:13]}
Rxd4 {[%clk 00:00:30]} 33. Be3 {[%clk 00:00:19]} {[%emt 00:00:12]} Rxb4 {[%clk
00:00:30]} {[%emt 00:00:01]} 34. Rxa6 {[%clk 00:00:19]} Rb1+ {[%clk 00:00:30]}
35. Kh2 {[%clk 00:00:19]} b4 {[%clk 00:00:30]} 36. Rb6 {[%clk 00:00:18]} {[%emt
00:00:04]} b3 {[%clk 00:00:30]} 37. Bd4 {[%clk 00:00:18]} {[%emt 00:00:02]} Rd1
{[%clk 00:00:30]} {[%emt 00:00:02]} 38. Bc3 {[%clk 00:00:15]} {[%emt 00:00:06]}
Rd3 {[%clk 00:00:30]} 39. Ba1 {[%clk 00:00:15]} {[%emt 00:00:03]} Rd2 {[%clk
00:00:30]} 40. Kg3 {[%clk 00:00:15]} {[%emt 00:00:02]} Kh7 {[%clk 00:00:27]}
{[%emt 00:00:05]} 41. Rb4 {[%clk 00:00:15]} {[%emt 00:00:03]} Ra2 {[%clk
00:00:27]} {[%emt 00:00:04]} 42. Bd4 {[%clk 00:00:15]} {[%emt 00:00:01]} Rd2
{[%clk 00:00:21]} {[%emt 00:00:08]} 43. Ba1 {[%clk 00:00:13]} {[%emt 00:00:06]}
Rd3+ {[%clk 00:00:21]} {[%emt 00:00:02]} 44. Kh2 {[%clk 00:00:13]} Kg6 {[%clk
00:00:17]} {[%emt 00:00:07]} 45. Bd4 {[%clk 00:00:12]} {[%emt 00:00:04]} Kf5
{[%clk 00:00:15]} {[%emt 00:00:06]} 46. f3 {[%clk 00:00:09]} {[%emt 00:00:06]}
g5 {[%clk 00:00:15]} {[%emt 00:00:01]} 47. Kg3 {[%clk 00:00:09]} {[%emt
00:00:02]} h5 {[%clk 00:00:15]} 48. Ba1 {[%clk 00:00:09]} {[%emt 00:00:02]} Rd2
{[%clk 00:00:15]} {[%emt 00:00:03]} 49. Bc3 {[%clk 00:00:09]} {[%emt 00:00:02]}
h4+ {[%clk 00:00:15]} 50. Kh2 {[%clk 00:00:09]} Rc2 {[%clk 00:00:10]} {[%emt
00:00:08]} 51. Be1 {[%clk 00:00:07]} {[%emt 00:00:05]} Bxf3 {[%clk 00:00:09]}
{[%emt 00:00:04]} 52. Rxb3 {[%clk 00:00:06]} {[%emt 00:00:04]} Bxg2 {[%clk
00:00:09]} {[%emt 00:00:03]} 53. Kg1 {[%clk 00:00:06]} {[%emt 00:00:02]} Bd5
{[%clk 00:00:09]} {[%emt 00:00:02]} 54. Re3 {[%clk 00:00:06]} {[%emt 00:00:02]}
Rc1 {[%clk 00:00:09]} {[%emt 00:00:02]} 55. Kf2 {[%clk 00:00:06]} {[%emt
00:00:02]} Rc2+ {[%clk 00:00:09]} {[%emt 00:00:01]} 56. Kg1 {[%clk 00:00:06]}
Kg6 {[%clk 00:00:09]} {[%emt 00:00:02]} 57. Bf2 {[%clk 00:00:06]} {[%emt
00:00:03]} Rc4 {[%clk 00:00:08]} {[%emt 00:00:04]} 58. Kh2 {[%clk 00:00:06]}
{[%emt 00:00:03]} Be4 {[%clk 00:00:08]} {[%emt 00:00:01]} 59. Be1 {[%clk
00:00:06]} {[%emt 00:00:02]} Bf5 {[%clk 00:00:08]} {[%emt 00:00:01]} 60. Re2
{[%clk 00:00:06]} {[%emt 00:00:02]} Ra4 {[%clk 00:00:08]} {[%emt 00:00:02]} 61.
Rg2 {[%clk 00:00:06]} {[%emt 00:00:02]} Ra3 {[%clk 00:00:08]} {[%emt 00:00:02]}
62. Bd2 {[%clk 00:00:06]} {[%emt 00:00:02]} Rxh3+ {[%clk 00:00:08]} {[%emt
00:00:01]} 63. Kg1 {[%clk 00:00:06]} g4 {[%clk 00:00:07]} {[%emt 00:00:04]} 64.
Bf4 {[%clk 00:00:06]} {[%emt 00:00:03]} Rf3 {[%clk 00:00:07]} {[%emt 00:00:01]}
65. Bd2 {[%clk 00:00:06]} {[%emt 00:00:01]} g3 {[%clk 00:00:07]} {[%emt
00:00:01]} 66. Re2 {[%clk 00:00:06]} {[%emt 00:00:02]} Bd3 {[%clk 00:00:07]}
{[%emt 00:00:03]} 67. Re1 {[%clk 00:00:06]} {[%emt 00:00:02]} h3 {[%clk
00:00:07]} {[%emt 00:00:01]} 68. Re3 {[%clk 00:00:06]} {[%emt 00:00:03]} Rxe3
{[%clk 00:00:07]} {[%emt 00:00:02]} 69. Bxe3 {[%clk 00:00:06]} {[%emt
00:00:01]} Be4 {[%clk 00:00:07]} 0-1